bitfinex-derivatives/quotes_SOLF0:USTF0_20250416
["timestamp","ask_amount","ask_price","bid_price","bid_amount"]
[1744793490017,41.00702702,125.14,125.08,32.94]
[1744793490223,8.04702702,125.14,125.11,7.993]
[1744793490517,0.05532702,125.14,125.08,32.94]
[1744793491019,0.05532702,125.14,125.11,7.993]
[1744793491519,8.04702702,125.14,125.11,7.993]
[1744793491817,8.04702702,125.14,125.12,7.9929]
[1744793492318,0.05532702,125.14,125.12,7.9929]
[1744793492717,0.05532702,125.14,125.11,7.9932]
[1744793493215,0.05532702,125.14,125.08,32.94]
[1744793493919,7.9927,125.13,125.1,7.9939]
[1744793494318,0.05532702,125.14,125.08,32.94]
[1744793494510,8.04722702,125.14,125.08,32.94]
[1744793495020,8.04722702,125.14,125.11,7.9932]
[1744793497208,7.9923,125.13,125.11,7.9932]
[1744793497414,10.75793095,125.14,125.08,32.94]
[1744793497708,32.96,125.13,125.05,43.66260393]
[1744793497909,7.9935,125.12,125.05,43.66260393]
[1744793498109,0.05163001,125.1,125.08,7.9949]
[1744793498312,0.05163001,125.1,125.07,10.70260393]
[1744793500123,0.05163001,125.1,125.09,7.9948]
[1744793501018,0.05163001,125.1,125.08,7.9952]
[1744793503128,0.05163001,125.1,125.07,10.70260393]
[1744793504520,0.05163001,125.1,125.09,10.70260393]
[1744793504721,35.1506,125.16,125.09,43.68260393]
[1744793505024,10.1812,125.16,125.13,7.9919]
[1744793505224,575.18,125.18,125.1,2.1008]
[1744793505715,7.99,125.17,125.1,2.1008]
[1744793505920,0.05890069,125.15,125.13,0.05163001]
[1744793506213,0.00603822,125.15,125.14,7.9913]
[1744793507223,32.96,125.22,125.19,7.9884]
[1744793508121,7.9862,125.23,125.18,32.94]
[1744793508525,0.05211502,125.22,125.2,7.9875]
[1744793509327,0.05211502,125.22,125.19,0.05040877]
[1744793509925,7.9874,125.21,125.19,0.05040877]
[1744793510321,0.05211502,125.22,125.19,0.05040877]
[1744793512733,7.9874,125.21,125.19,0.05040877]
[1744793514331,0.05211502,125.22,125.19,0.05040877]
[1744793514532,32.99211502,125.22,125.19,0.05040877]
[1744793514933,7.9878,125.2,125.19,0.05040877]
[1744793515634,7.9893,125.18,125.15,40.9307]
[1744793515835,7.9893,125.18,125.15,32.94]
[1744793516533,7.9888,125.19,125.16,7.9903]
[1744793516729,0.05818007,125.18,125.16,7.9903]
[1744793517227,0.05818007,125.18,125.16,8.04421976]
[1744793517835,0.05818007,125.18,125.16,0.05391976]
[1744793518836,0.05818007,125.18,125.16,8.04391976]
[1744793519838,8.04738007,125.18,125.16,8.04391976]
[1744793520036,0.05818007,125.18,125.16,8.04391976]
[1744793520239,0.05818007,125.18,125.17,7.9897]
[1744793520535,0.05818007,125.18,125.16,0.05391976]
[1744793520737,0.05818007,125.18,125.16,8.04391976]
[1744793521440,0.05818007,125.18,125.17,7.9897]
[1744793523337,8.04768007,125.18,125.16,32.99391976]
[1744793524231,0.05818007,125.18,125.16,32.99391976]
[1744793525136,0.05818007,125.18,125.17,7.9897]
[1744793526535,0.05818007,125.18,125.16,0.05391976]
[1744793527638,2.12958007,125.18,125.16,0.05391976]
[1744793528041,7.9897,125.17,125.16,0.05391976]
[1744793528237,10.69745309,125.17,125.1,32.94]
[1744793528437,10.69745309,125.17,125.11,3.30768102]
[1744793528638,7.9913,125.15,125.12,7.9926]
[1744793529246,10.75090521,125.15,125.07,71.96886008]
[1744793529546,10.69745309,125.15,125.08,3.30848264]
[1744793529741,8.04455104,125.12,125.09,3.30848264]
[1744793530040,8.04455104,125.12,125.07,71.96886008]
[1744793530237,8.04455104,125.12,125.08,3.30851786]
[1744793530438,0.05135104,125.12,125.09,3.30851786]
[1744793530643,0.05135104,125.12,125.07,71.96886008]
[1744793530943,8.04445104,125.12,125.1,7.9938]
[1744793531344,8.04445104,125.12,125.09,7.9942]
[1744793531654,8.04445104,125.12,125.07,34.9977]
[1744793531947,0.05135104,125.12,125.08,3.30967495]
[1744793532147,0.05135104,125.12,125.1,7.9938]
[1744793533150,8.04455104,125.12,125.1,7.9938]
[1744793533543,8.04455104,125.12,125.09,7.9946]
[1744793534648,7.9936,125.11,125.09,7.9946]
[1744793535344,7.9936,125.11,125.08,7.9953]
[1744793535549,0.05135104,125.12,125.07,32.94]
[1744793535849,0.05135104,125.12,125.08,14.007307]
[1744793536050,0.05135104,125.12,125.11,7.9936]
[1744793537751,0.05135104,125.12,125.07,32.94]
[1744793538447,0.05135104,125.12,125.08,14.00807869]
[1744793538648,0.05135104,125.12,125.09,3.3106256]
[1744793538848,0.05135104,125.12,125.08,10.69745309]
[1744793539049,0.05135104,125.12,125.09,3.30996389]
[1744793539247,0.05135104,125.12,125.08,10.69745309]
[1744793539447,0.05135104,125.12,125.09,3.30975491]
[1744793539650,43.61745309,125.12,125.03,2.2161]
[1744793539851,43.67804396,125.12,125.04,14.00971349]
[1744793540051,7.9943,125.1,125.07,7.9958]
[1744793540248,0.06113132,125.09,125.07,7.9958]
[1744793541252,8.05613132,125.09,125.06,7.9964]
[1744793541453,0.06113132,125.09,125.04,10.69745309]
[1744793541749,0.06113132,125.09,125.05,3.31064377]
[1744793542046,7.9955,125.08,125.06,3.31064377]
[1744793542249,7.9955,125.08,125.05,7.9971]
[1744793542448,7.9955,125.08,125.04,10.69745309]
[1744793542449,7.9955,125.08,125.06,7.9967]
[1744793542752,7.9955,125.08,125.04,10.69745309]
[1744793542954,7.9955,125.08,125.05,3.31011058]
[1744793543253,7.9955,125.08,125.05,7.9971]
[1744793544453,7.9962,125.07,125.05,7.9971]
[1744793544854,0.06113132,125.09,125.04,7.998]
[1744793545154,7.9966,125.07,125.05,3.30812158]
[1744793545354,0.06113132,125.09,125.05,7.9974]
[1744793545547,7.9961,125.08,125.05,7.9974]
[1744793545748,0.06113132,125.09,125.05,7.9974]
[1744793545944,0.06113132,125.09,125.04,7.9977]
[1744793546146,7.9965,125.07,125.05,3.3075005]
[1744793546350,7.9965,125.07,125.04,7.9977]
[1744793546646,7.9965,125.07,125.05,3.3073119]
[1744793546849,7.9965,125.07,125.04,7.9977]
[1744793547046,7.9965,125.07,125.05,3.30799018]
[1744793547246,7.9965,125.07,125.04,7.9977]
[1744793547753,32.92,125.07,124.99,32.92]
[1744793547959,15.05015309,125.06,125.0,3.31001964]
[1744793548258,7.9994,125.02,124.99,40.9208]
[1744793548459,0.05740273,125.04,124.98,10.69745309]
[1744793548653,7.999,125.03,125.0,8.0003]
[1744793548957,8.05235129,125.03,125.0,8.0003]
[1744793549158,0.05335129,125.03,124.96,49.70781317]
[1744793549360,10.69745309,125.02,124.96,36.97116008]
[1744793549553,2.1567,125.01,124.96,36.97116008]
[1744793549754,8.0022,124.98,124.96,36.97116008]
[1744793550256,8.0025,124.97,124.96,36.97116008]
[1744793550860,8.0023,124.98,124.96,36.97116008]
[1744793551060,32.94,124.99,124.96,36.97116008]
[1744793551264,10.69745309,124.97,124.92,32.92]
[1744793551562,8.004,124.95,124.89,57.59534311]
[1744793551753,0.05884955,124.96,124.91,10.69745309]
[1744793552067,0.05546296,124.95,124.92,8.0055]
[1744793552860,0.05546296,124.95,124.89,57.59534311]
[1744793553164,0.05546296,124.95,124.9,3.29615157]
[1744793553364,0.05546296,124.95,124.91,10.69745309]
[1744793553558,0.05546296,124.95,124.94,8.0044]
[1744793554064,4.1656,125.01,124.94,32.94]
[1744793554366,12.08945309,125.09,124.98,10.69745309]
[1744793554367,608.5,125.06,124.98,10.69745309]
[1744793554564,7.9995,125.02,124.98,10.69745309]
[1744793554764,4.2714,125.05,125.0,8.0005]
[1744793555065,4.2714,125.05,124.98,43.63745309]
[1744793555265,7.9984,125.04,124.98,43.63745309]
[1744793555468,8.05020426,125.04,125.01,0.05556164]
[1744793555869,8.05020426,125.04,125.01,8.05546164]
[1744793556068,0.05180426,125.04,125.01,0.05556164]
[1744793556671,0.05180426,125.04,125.02,43.63745309]
[1744793557169,0.05180426,125.04,125.03,7.9987]
[1744793557474,0.05180426,125.04,125.02,32.94]
[1744793557866,0.05180426,125.04,125.03,7.9987]
[1744793565780,0.05180426,125.04,125.02,40.9391]
[1744793566474,0.05180426,125.04,125.03,7.9987]
[1744793571585,0.05180426,125.04,125.01,0.05556164]
[1744793572081,0.05180426,125.04,125.02,7.9988]
[1744793572282,8.04990426,125.04,125.02,7.9988]
[1744793572483,0.05180426,125.04,125.02,7.9988]
[1744793573685,7.9987,125.03,125.01,0.05556164]
[1744793574593,8.05010426,125.04,125.01,0.05556164]
[1744793574788,8.05010426,125.04,125.01,8.05526164]
[1744793575087,0.05180426,125.04,125.01,0.05556164]
[1744793575289,6.31490426,125.04,125.01,0.05556164]
[1744793575493,7.9992,125.03,125.01,0.05556164]
[1744793578595,14.31320426,125.04,125.01,8.05536164]
[1744793578796,0.05180426,125.04,125.01,0.05556164]
[1744793579391,0.05180426,125.04,125.03,7.9987]
[1744793579991,0.05180426,125.04,125.02,7.9992]
[1744793580190,0.05180426,125.04,125.01,32.97556164]
[1744793581200,8.05010426,125.04,125.01,40.97526164]
[1744793581404,8.05010426,125.04,125.01,8.05526164]
[1744793582699,8.05010426,125.04,125.02,7.9993]
[1744793583002,0.05180426,125.04,125.01,0.05556164]
[1744793584105,0.05180426,125.04,125.03,7.9987]
[1744793585600,0.05180426,125.04,125.03,11.31342089]
[1744793587005,0.05180426,125.04,125.03,11.31345997]
[1744793587906,7.9951,125.09,125.07,7.996]
[1744793588304,7.9951,125.09,125.04,10.71438619]
[1744793588507,7.9951,125.09,125.06,7.9964]
[1744793588706,7.9956,125.08,125.02,47.76418619]
[1744793588907,7.9956,125.08,125.05,7.9969]
[1744793589107,0.05465724,125.06,125.05,7.9969]
[1744793590206,0.05465724,125.06,125.05,11.31057541]
[1744793590509,0.05465724,125.06,125.05,11.31032464]
[1744793595706,0.05465724,125.06,125.04,8.05224487]
[1744793596102,0.05465724,125.06,125.04,0.05454487]
[1744793596607,0.05465724,125.06,125.02,32.92]
[1744793596608,4.32205724,125.06,125.02,32.92]
[1744793596809,7.9982,125.04,125.01,7.9996]
[1744793597010,15.03644343,125.06,125.02,3.31869049]
[1744793597216,7.9987,125.03,125.01,7.9996]
[1744793597514,7.9987,125.03,125.02,3.32156105]
[1744793597810,0.06048927,125.04,125.02,11.32076105]
[1744793598116,0.06048927,125.04,125.01,0.0571305]
[1744793598316,0.06048927,125.04,125.03,7.9987]
[1744793598512,0.06048927,125.04,125.03,11.32317195]
[1744793600418,10.71438619,125.12,125.08,7.9953]
[1744793600612,37.1078,125.13,125.04,10.71438619]
[1744793600912,10.71438619,125.12,125.05,3.32390012]
[1744793601114,10.71438619,125.1,125.06,3.32390012]
[1744793601315,10.71438619,125.1,125.03,32.88]
[1744793601511,0.05391547,125.08,125.04,3.32456664]
[1744793601709,43.64830166,125.08,125.05,0.05249156]
[1744793601909,7.998,125.05,124.99,32.88]
[1744793602112,7.998,125.05,125.0,3.3267693]
[1744793602420,7.998,125.05,125.01,3.3267693]
[1744793602617,7.998,125.05,125.02,3.3267693]
[1744793602819,7.998,125.05,125.03,3.3267693]
[1744793603020,0.05977888,125.05,125.02,0.05679781]
[1744793603321,0.05977888,125.05,125.03,11.32430083]
[1744793603508,0.05977888,125.05,125.04,3.32600083]
[1744793604317,8.05717888,125.05,125.04,3.32600083]
[1744793604817,8.05717888,125.05,125.03,7.9986]
[1744793605218,0.05977888,125.05,125.03,7.9986]
[1744793605420,0.05977888,125.05,125.02,8.05579781]
[1744793605618,0.05977888,125.05,125.02,0.05679781]
[1744793606021,0.05977888,125.05,125.03,7.9984]
[1744793606220,0.05977888,125.05,125.04,3.32588389]
[1744793606719,0.05977888,125.05,125.04,11.32388389]
[1744793607723,0.05977888,125.05,125.04,3.32588389]
[1744793608723,0.05977888,125.05,125.04,11.32388389]
[1744793612726,0.05977888,125.05,125.04,11.31781587]
[1744793614130,21.04201,125.11,125.04,3.31981587]
[1744793614325,21.04201,125.11,125.03,43.59438619]
[1744793614326,21.04201,125.11,125.07,10.71438619]
[1744793614526,21.04201,125.11,125.08,3.31981587]
[1744793614730,21.04201,125.11,125.07,10.71438619]
[1744793614932,21.04201,125.11,125.08,3.31751212]
[1744793615131,21.04201,125.11,125.07,10.71438619]
[1744793615328,21.09513522,125.11,125.08,3.37750662]
[1744793615528,21.09513522,125.11,125.09,7.9945]
[1744793616232,29.08913522,125.11,125.08,8.056606]
[1744793616527,21.09513522,125.11,125.05,32.88]
[1744793616832,7.9949,125.09,125.06,11.31089429]
[1744793617031,21.09513522,125.11,125.07,3.31449429]
[1744793617333,21.04201,125.11,125.05,32.88]
[1744793617531,21.04201,125.11,125.06,3.31381924]
[1744793617732,0.05614016,125.09,125.07,3.3663659]
[1744793617932,0.05614016,125.09,125.07,0.05254666]
[1744793619132,8.05144016,125.09,125.07,0.05254666]
[1744793619431,0.05614016,125.09,125.07,0.05254666]
[1744793620534,0.05614016,125.09,125.08,7.9955]
[1744793621930,0.05614016,125.09,125.08,11.30892144]
[1744793624631,0.05614016,125.09,125.08,3.31342144]
[1744793625031,0.05614016,125.09,125.08,11.30892144]
[1744793625228,0.05614016,125.09,125.08,11.30866044]
[1744793627236,0.05614016,125.09,125.08,11.30996618]
[1744793627431,0.05614016,125.09,125.07,0.05254666]
[1744793628335,8.05124016,125.09,125.07,8.04864666]
[1744793628634,0.05614016,125.09,125.07,0.05254666]
[1744793629035,2.27964016,125.09,125.07,0.05254666]
[1744793629236,7.9955,125.08,125.07,0.05254666]
[1744793629538,7.9955,125.08,125.07,3.3681419]
[1744793629731,2.27964016,125.09,125.07,0.0215419]
[1744793629931,10.27484016,125.09,125.06,7.9964]
[1744793630937,10.27484016,125.09,125.07,7.996]
[1744793632036,10.27484016,125.09,125.06,7.9964]
[1744793633532,7.9956,125.08,125.06,7.9964]
[1744793633737,7.9956,125.08,125.05,7.997]
[1744793635142,0.05614016,125.09,125.03,10.71438619]
[1744793635436,0.05614016,125.09,125.07,7.9958]
[1744793635637,0.05614016,125.09,125.03,10.71438619]
[1744793636143,7.9958,125.08,125.05,7.9968]
[1744793636841,7.9961,125.07,125.05,7.9968]
[1744793637140,0.05614016,125.09,125.05,7.9968]
[1744793637634,7.9958,125.08,125.05,7.9968]
[1744793638839,7.9958,125.08,125.06,7.9966]
[1744793639036,8.05124016,125.09,125.06,7.9966]
[1744793639239,0.05614016,125.09,125.02,32.84]
[1744793639441,10.71438619,125.08,125.02,40.839]
[1744793639640,7.9978,125.05,125.02,40.839]
[1744793639939,10.77198408,125.06,124.99,32.84]
[1744793640241,14.94918619,125.04,124.96,42.08279002]
[1744793640442,32.84,125.03,124.97,8.0022]
[1744793640741,8.0522118,125.01,124.96,42.08279002]
[1744793640940,8.0522118,125.01,124.98,8.0015]
[1744793641241,8.0006,125.0,124.98,8.0015]
[1744793641542,0.0516118,125.01,124.98,8.0015]
[1744793641742,0.0516118,125.01,124.99,3.21255359]
[1744793642042,0.0516118,125.01,124.96,42.08279002]
[1744793642243,0.0516118,125.01,124.97,11.21378004]
[1744793642447,0.0516118,125.01,124.98,3.21168004]
[1744793642448,8.001,125.0,124.98,3.21168004]
[1744793642743,0.0516118,125.01,124.98,3.21168004]
[1744793642933,0.0516118,125.01,124.96,40.843]
[1744793643137,0.0516118,125.01,124.97,3.21200936]
[1744793643347,0.0516118,125.01,124.98,3.21200936]
[1744793643546,0.0516118,125.01,124.96,8.003]
[1744793643744,0.0516118,125.01,124.97,3.21209078]
[1744793643945,0.0516118,125.01,124.98,3.21209078]
[1744793644146,0.0516118,125.01,124.95,10.71438619]
[1744793644342,0.0516118,125.01,124.96,3.21034463]
[1744793644543,0.0516118,125.01,124.97,3.21040813]
[1744793644736,0.0516118,125.01,124.99,8.0007]
[1744793644944,0.0516118,125.01,125.0,3.21040813]
[1744793645146,0.0516118,125.01,124.99,8.0007]
[1744793645448,8.0516118,125.01,124.98,8.0015]
[1744793646448,8.0516118,125.01,124.99,8.0012]
[1744793646749,8.0516118,125.01,124.96,2.2208]
[1744793646943,8.0516118,125.01,124.97,3.20698301]
[1744793647247,8.0516118,125.01,124.98,3.20621276]
[1744793647450,8.0516118,125.01,124.98,8.0016]
[1744793650345,0.0516118,125.01,124.97,32.86]
[1744793650648,0.0516118,125.01,124.98,3.20080969]
[1744793650846,0.0516118,125.01,125.0,8.0006]
[1744793653150,8.0515118,125.01,124.98,8.0017]
[1744793654153,8.0515118,125.01,124.99,8.0012]
[1744793655551,0.0516118,125.01,124.99,8.0012]
[1744793655850,0.0516118,125.01,125.0,8.0006]
[1744793656552,0.0516118,125.01,124.97,32.86]
[1744793656752,8.0520118,125.01,124.97,32.86]
[1744793657251,8.0520118,125.01,124.98,8.0014]
[1744793657550,0.0516118,125.01,124.97,32.86]
[1744793657751,0.0516118,125.01,124.95,10.71438619]
[1744793657952,0.0516118,125.01,124.96,3.19292327]
[1744793658150,0.0516118,125.01,124.99,8.001]
[1744793658554,0.0516118,125.01,124.95,10.71438619]
[1744793658753,0.0516118,125.01,125.0,8.0006]
[1744793659251,0.0516118,125.01,124.99,8.001]
[1744793660053,0.0516118,125.01,125.0,8.0006]
[1744793660354,0.0516118,125.01,124.98,32.82]
[1744793660854,0.0516118,125.01,124.99,8.0009]
[1744793661753,8.0517118,125.01,124.98,40.8216]
[1744793662052,14.91423258,125.01,124.98,32.82]
[1744793662554,8.0006,125.0,124.98,32.82]
[1744793662754,6.91413258,125.01,124.98,32.82]
[1744793663046,6.86252078,124.99,124.94,34.8486]
[1744793663245,6.86252078,124.97,124.92,8.92172078]
[1744793663446,14.86542078,124.97,124.94,8.0041]
[1744793663749,0.05820704,124.98,124.91,39.68252078]
[1744793663750,6.86252078,124.96,124.91,39.68252078]
[1744793663950,6.86252078,124.95,124.92,3.18832137]
[1744793664147,6.86252078,124.94,124.9,2.1]
[1744793664347,6.86252078,124.93,124.89,9.24279002]
[1744793664543,14.86792078,124.93,124.9,8.0067]
[1744793664743,0.05234779,124.92,124.9,8.0067]
[1744793664948,6.86252078,124.91,124.89,9.24279002]
[1744793665150,0.05234779,124.92,124.89,9.24279002]
[1744793665656,8.05844779,124.92,124.89,17.25009002]
[1744793666553,8.05844779,124.92,124.89,8.0073]
[1744793667650,8.0064,124.91,124.88,8.0078]
[1744793668358,8.05834779,124.92,124.89,8.0076]
[1744793668556,4.1662,124.94,124.86,10.7416949]
[1744793668857,0.06050463,124.92,124.91,8.0064]
[1744793669057,10.7416949,124.97,124.91,8.0064]
[1744793669355,0.05885089,124.93,124.91,8.0064]
[1744793669656,0.05885089,124.93,124.9,40.8267]
[1744793669856,0.05885089,124.93,124.9,32.82]
[1744793670057,0.05885089,124.93,124.88,4.282]
[1744793670356,8.0057,124.92,124.89,8.0073]
[1744793670753,0.05885089,124.93,124.88,4.282]
[1744793670958,8.06425089,124.93,124.88,4.282]
[1744793671164,0.05885089,124.93,124.88,4.282]
[1744793671654,0.05885089,124.93,124.91,8.0063]
[1744793671858,0.05885089,124.93,124.88,2.1713]
[1744793672257,8.06425089,124.93,124.9,8.0068]
[1744793672559,8.06425089,124.93,124.88,2.1713]
[1744793672859,8.0059,124.92,124.89,8.007]
[1744793673657,8.06425089,124.93,124.9,8.0069]
[1744793673853,0.05885089,124.93,124.9,8.0069]
[1744793674162,8.06395089,124.93,124.9,8.0069]
[1744793674359,10.80054579,124.93,124.87,32.82]
[1744793674563,10.80054579,124.93,124.84,32.84]
[1744793674757,8.006,124.92,124.85,3.17923097]
[1744793675060,0.05329087,124.9,124.88,8.0079]
[1744793675260,0.05329087,124.9,124.84,32.84]
[1744793675463,0.05329087,124.9,124.88,8.0077]
[1744793675962,0.05329087,124.9,124.85,10.7416949]
[1744793676151,0.05329087,124.9,124.86,3.18292092]
[1744793676357,8.06079087,124.9,124.84,32.84]
[1744793676862,0.05329087,124.9,124.84,32.84]
[1744793677164,8.0086,124.88,124.85,8.0099]
[1744793677464,0.05329087,124.9,124.84,32.84]
[1744793677664,40.8467,124.91,124.84,32.84]
[1744793677861,0.05747698,124.88,124.84,32.84]
[1744793678863,0.05747698,124.88,124.87,8.0089]
[1744793680167,8.06617698,124.88,124.84,32.84]
[1744793680767,8.06617698,124.88,124.86,8.0095]
[1744793680967,8.009,124.87,124.84,32.84]
[1744793681565,8.06607698,124.88,124.84,32.84]
[1744793681867,0.05747698,124.88,124.84,32.84]
[1744793682063,0.05747698,124.88,124.87,18.7505949]
[1744793682367,39.0208,124.94,124.87,10.7416949]
[1744793682568,39.0208,124.94,124.87,43.5816949]
[1744793682768,64.6237049,124.97,124.87,43.5816949]
[1744793682966,6.4511,124.96,124.87,43.5816949]
[1744793683167,6.4511,124.96,124.9,8.0066]
[1744793683369,0.05818497,124.93,124.9,8.05942127]
[1744793683565,0.05818497,124.93,124.9,0.05282127]
[1744793683767,8.06328497,124.93,124.91,8.0062]
[1744793683964,0.05818497,124.93,124.9,0.05282127]
[1744793684274,0.05818497,124.93,124.91,8.006]
[1744793685477,0.05818497,124.93,124.92,8.0057]
[1744793686879,21.04201,124.97,124.95,8.0032]
[1744793687278,21.04201,124.97,124.96,8.0032]
[1744793689479,21.04201,124.97,124.95,8.06292282]
[1744793690180,21.04201,124.97,124.96,8.0032]
[1744793690383,29.04461,124.97,124.95,0.05942282]
[1744793690877,32.8,124.96,124.85,32.8]
[1744793691082,10.7416949,124.95,124.86,13.93309544]
[1744793691285,10.7416949,124.95,124.87,3.19140054]
[1744793691478,8.0054,124.93,124.89,8.0073]
[1744793692078,0.05387606,124.92,124.9,0.05154945]
[1744793693882,0.05387606,124.92,124.91,8.0064]
[1744793694276,40.8032,124.96,124.9,10.79324435]
[1744793694277,8.0032,124.96,124.9,10.79324435]
[1744793694884,8.0032,124.96,124.91,3.19126182]
[1744793695083,8.0032,124.96,124.9,10.79324435]
[1744793695284,8.0032,124.96,124.91,3.19203632]
[1744793695485,0.05122892,124.94,124.9,10.79324435]
[1744793695685,0.05122892,124.94,124.91,3.19203751]
[1744793695875,0.05122892,124.94,124.9,10.79324435]
[1744793696081,0.05122892,124.94,124.91,3.1927852]
[1744793696381,0.05122892,124.94,124.92,8.0054]
[1744793696980,0.05122892,124.94,124.91,8.0058]
[1744793697485,8.05602892,124.94,124.91,8.0058]
[1744793697784,8.05602892,124.94,124.9,8.05834945]
[1744793697986,8.05602892,124.94,124.9,0.05154945]
[1744793698486,8.05602892,124.94,124.91,8.006]
[1744793700585,0.05122892,124.94,124.9,8.05814945]
[1744793700786,0.05122892,124.94,124.9,0.05154945]
[1744793703187,0.05122892,124.94,124.92,8.0056]
[1744793703989,8.05572892,124.94,124.91,8.0059]
[1744793704588,0.05122892,124.94,124.9,0.05154945]
[1744793704784,0.05122892,124.94,124.91,3.2019216]
[1744793704988,0.05122892,124.94,124.9,0.05154945]
[1744793705188,0.05122892,124.94,124.91,11.20960035]
[1744793705392,0.05122892,124.94,124.91,8.006]
[1744793705690,0.05122892,124.94,124.9,0.05154945]
[1744793706290,8.0063,124.92,124.9,0.05154945]
[1744793706685,0.05122892,124.94,124.9,0.05154945]
[1744793706885,8.006,124.92,124.9,0.05154945]
[1744793707190,0.05122892,124.94,124.9,0.05154945]
[1744793707385,45.6832949,124.93,124.9,0.05154945]
[1744793708692,45.6832949,124.93,124.84,14.7777949]
[1744793708889,10.7416949,124.89,124.85,3.21197766]
[1744793709091,8.0095,124.87,124.83,32.8]
[1744793709283,43.5416949,124.89,124.84,3.21395225]
[1744793709487,43.5416949,124.89,124.83,32.8]
[1744793709686,0.05579551,124.87,124.85,0.05328435]
[1744793710288,32.8,124.86,124.81,37.23369702]
[1744793710688,8.0105,124.85,124.81,8.0123]
[1744793711288,4.3552,124.88,124.82,3.21061166]
[1744793711594,0.06091129,124.84,124.83,3.20804565]
[1744793711789,8.009,124.87,124.84,8.0106]
[1744793711985,0.05482755,124.85,124.84,8.0106]
[1744793713295,0.05482755,124.85,124.84,11.21269752]
[1744793713594,0.05482755,124.85,124.84,44.01269752]
[1744793713792,0.05482755,124.85,124.84,40.8106]
[1744793715288,32.82,124.92,124.84,36.00120702]
[1744793715484,8.0078,124.89,124.84,32.8]
[1744793716596,0.05920062,124.88,124.85,8.06452152]
[1744793717291,0.05920062,124.88,124.86,8.0095]
[1744793718090,0.05920062,124.88,124.87,32.78]
[1744793718295,2.1663,124.93,124.87,46.71888034]
[1744793718593,10.172,124.93,124.9,8.0066]
[1744793718989,32.78,124.95,124.91,8.0061]
[1744793719590,2.20220127,124.94,124.91,8.06659547]
[1744793719794,10.20700127,124.94,124.91,8.06659547]
[1744793720198,8.06110127,124.94,124.91,8.06659547]
[1744793721198,8.0051,124.93,124.91,0.06049547]
[1744793721798,8.06090127,124.94,124.91,8.06639547]
[1744793722898,0.05630127,124.94,124.91,8.06639547]
[1744793723801,0.05630127,124.94,124.92,8.0056]
[1744793724600,0.05630127,124.94,124.91,0.06049547]
[1744793725705,0.05630127,124.94,124.92,3.18448651]
[1744793725903,0.05630127,124.94,124.91,10.80219037]
[1744793726204,0.05630127,124.94,124.92,3.18428702]
[1744793726403,0.05630127,124.94,124.91,10.80219037]
[1744793726404,0.05630127,124.94,124.93,32.78]
[1744793726604,0.05630127,124.94,124.93,40.7851]
[1744793734909,0.05630127,124.94,124.93,32.78]
[1744793735209,0.05630127,124.94,124.91,0.06049547]
[1744793735406,0.05630127,124.94,124.92,8.0054]
[1744793736411,0.05630127,124.94,124.91,0.06049547]
[1744793736608,21.04201,124.97,124.93,10.7416949]
[1744793736802,32.76,125.05,124.96,10.7416949]
[1744793737002,32.76,125.05,124.98,10.7416949]
[1744793737212,17.0699949,125.06,124.98,10.7416949]
[1744793737402,17.0699949,125.06,124.97,32.76]
[1744793737911,8.05184402,125.03,125.0,0.0542213]
[1744793738112,0.05284402,125.03,125.0,0.0542213]
[1744793739011,0.05284402,125.03,125.0,32.8142213]
[1744793739211,0.05284402,125.03,125.01,7.9999]
[1744793739412,0.05284402,125.03,125.0,32.8142213]
[1744793739815,0.05284402,125.03,125.01,7.9996]
[1744793740016,0.05284402,125.03,125.0,32.8142213]
[1744793740314,8.05184402,125.03,125.0,32.8142213]
[1744793740514,0.05284402,125.03,125.01,7.9999]
[1744793741815,8.05154402,125.03,125.01,7.9999]
[1744793742215,8.05154402,125.03,125.0,40.8147213]
[1744793743017,0.05284402,125.03,125.01,7.9999]
[1744793744117,0.05284402,125.03,125.02,7.9993]
[1744793744313,0.05284402,125.03,125.0,32.8142213]
[1744793744714,0.05284402,125.03,125.01,7.9996]
[1744793746007,0.05284402,125.03,125.02,7.9993]
[1744793746618,0.05284402,125.03,125.01,7.9997]
[1744793746819,0.05284402,125.03,125.0,32.8142213]
[1744793747221,8.05184402,125.03,125.0,40.8142213]
[1744793747722,8.05184402,125.03,125.0,32.8142213]
[1744793747918,8.05184402,125.03,125.01,7.9999]
[1744793748323,0.05284402,125.03,125.01,7.9999]
[1744793749216,0.05284402,125.03,125.0,32.8142213]